bitfinex/quotes_SOLUSD_20220218
["timestamp","ask_amount","ask_price","bid_price","bid_amount"]
[1645215006403,110.2,91.19,91.12,16.4653]
[1645215007003,0.25,91.194,91.12,16.4653]
[1645215007203,0.25,91.194,91.114,24.4012]
[1645215007407,0.25,91.194,91.121,2.6293831]
[1645215007603,0.25,91.194,91.122,5.735]
[1645215007903,0.25,91.194,91.123,2.6293831]
[1645215008105,40.12870973,91.195,91.124,5.734]
[1645215008307,40.12870973,91.195,91.131,110.2]
[1645215008503,40.12870973,91.195,91.16,16.458]
[1645215010206,40.12870973,91.195,91.15,16.4596]
[1645215011808,0.25,91.194,91.15,16.4596]
[1645215013612,16.2647,91.21,91.16,16.458]
[1645215013813,16.2647,91.21,91.136,49.92638285]
[1645215013814,23.0295,91.218,91.161,5.732]
[1645215014012,3.09954092,91.241,91.163,110.2]
[1645215014211,23.2216,91.249,91.165,110.2]
[1645215014517,3.09954092,91.264,91.171,110.2]
[1645215014713,47.3362627,91.263,91.21,16.4478]
[1645215014915,47.3362627,91.263,91.211,55.65638285]
[1645215015412,47.3362627,91.263,91.211,55.40638285]
[1645215015812,47.3362627,91.263,91.23,16.4455]
[1645215016211,0.25,91.262,91.23,16.4455]
[1645215016813,0.25,91.288,91.23,16.4455]
[1645215017214,6.21232708,91.287,91.23,16.4455]
[1645215017416,0.25,91.288,91.23,16.4455]
[1645215017632,52.5128739,91.288,91.23,16.4455]
[1645215017819,52.2628739,91.288,91.213,110.2]
[1645215018021,52.2628739,91.288,91.241,46.63566381]
[1645215018223,52.2628739,91.288,91.241,52.11366381]
[1645215018420,52.2628739,91.288,91.241,46.63566381]
[1645215018818,52.2628739,91.288,91.242,5.478]
[1645215019219,0.25,91.287,91.242,5.478]
[1645215019421,0.25,91.287,91.25,16.4418]
[1645215019836,0.25,91.287,91.231,5.478]
[1645215020245,110.45,91.287,91.204,5.478]
[1645215020437,110.45,91.287,91.202,5.479]
[1645215020636,0.25,91.287,91.202,5.479]
[1645215020837,0.25,91.287,91.213,52.93304167]
[1645215021040,0.25,91.287,91.23,16.4453]
[1645215021236,0.25,91.287,91.231,5.478]
[1645215021537,0.25,91.287,91.215,5.478]
[1645215021736,0.25,91.287,91.211,5.479]
[1645215022337,0.25,91.287,91.22,16.4458]
[1645215023137,110.45,91.287,91.22,16.4458]
[1645215023337,2.6293831,91.286,91.21,16.4491]
[1645215024540,110.2,91.287,91.21,16.4491]
[1645215024739,52.2628739,91.288,91.22,16.4471]
[1645215025440,110.2,91.287,91.22,16.4471]
[1645215025640,110.2,91.287,91.203,41.82662243]
[1645215026241,110.2,91.287,91.21,16.4488]
[1645215026939,110.2,91.287,91.203,41.82662243]
[1645215027139,0.25,91.286,91.203,41.82662243]
[1645215027750,110.2,91.287,91.203,41.82662243]
[1645215027947,0.25,91.286,91.203,41.82662243]
[1645215028149,0.25,91.286,91.22,16.4474]
[1645215028346,0.25,91.287,91.213,5.479]
[1645215028547,0.25,91.287,91.221,2.6293831]
[1645215028750,0.25,91.287,91.222,5.729]
[1645215029149,0.25,91.287,91.222,5.479]
[1645215029652,110.45,91.287,91.213,5.479]
[1645215029850,110.45,91.287,91.203,41.82662243]
[1645215030050,111.98671231,91.287,91.203,41.82662243]
[1645215030255,1.53671231,91.286,91.203,41.82662243]
[1645215030650,1.53671231,91.286,91.204,24.8096]
[1645215030850,1.53671231,91.285,91.204,24.8096]
[1645215031050,1.53671231,91.285,91.22,16.447]
[1645215031252,111.73671231,91.287,91.22,16.447]
[1645215031650,0.25,91.286,91.22,16.447]
[1645215032050,110.2,91.284,91.193,5.479]
[1645215032254,9.64509541,91.285,91.18,54.8322]
[1645215032255,1.53671231,91.275,91.18,54.8322]
[1645215032451,110.2,91.269,91.181,23.702]
[1645215032652,53.5721,91.268,91.181,23.702]
[1645215032855,48.0921,91.268,91.182,51.12216453]
[1645215033052,48.0921,91.268,91.182,53.75154763]
[1645215033251,48.0921,91.268,91.183,2.8793831]
[1645215033453,48.0921,91.268,91.184,5.48]
[1645215033652,48.0921,91.268,91.21,16.4488]
[1645215033853,48.0921,91.268,91.211,43.90194347]
[1645215035055,0.25,91.267,91.211,43.90194347]
[1645215035755,0.25,91.267,91.21,16.4488]
[1645215036157,0.25,91.267,91.22,16.4471]
[1645215036356,1.53671231,91.284,91.211,2.6293831]
[1645215036555,1.53671231,91.284,91.192,23.235]
[1645215036556,1.53671231,91.292,91.221,2.6293831]
[1645215036759,1.53671231,91.295,91.222,61.95847576]
[1645215037155,1.53671231,91.296,91.223,2.8793831]
[1645215037356,45.7505,91.306,91.23,54.8024]
[1645215037357,1.53671231,91.297,91.23,54.8024]
[1645215037558,1.53671231,91.301,91.231,11.728]
[1645215037755,45.7505,91.306,91.231,14.3573831]
[1645215037955,47.28721231,91.306,91.231,8.3573831]
[1645215038158,1.53671231,91.304,91.231,8.3573831]
[1645215038360,1.53671231,91.303,91.25,16.4419]
[1645215038557,110.2,91.305,91.231,5.478]
[1645215038755,0.25,91.287,91.219,5.478]
[1645215038954,0.25,91.287,91.214,5.479]
[1645215038955,25.1348,91.287,91.214,5.479]
[1645215039155,25.1348,91.287,91.211,5.479]
[1645215039559,25.1348,91.287,91.213,67.58706251]
[1645215039755,25.1348,91.287,91.214,5.729]
[1645215040357,25.1348,91.287,91.23,16.4453]
[1645215040556,25.1348,91.287,91.214,5.729]
[1645215040758,25.1348,91.287,91.215,6.0]
[1645215040960,25.1348,91.287,91.216,5.729]
[1645215041160,25.1348,91.287,91.217,6.0]
[1645215041356,25.1348,91.287,91.218,5.729]
[1645215041556,25.1348,91.287,91.23,16.4454]
[1645215041760,1.53671231,91.285,91.23,16.4454]
[1645215041961,1.53671231,91.281,91.23,16.4454]
[1645215042363,1.53671231,91.275,91.213,23.0815]
[1645215042561,1.53671231,91.273,91.213,23.0815]
[1645215042761,1.53671231,91.268,91.213,23.0815]
[1645215042960,1.53671231,91.267,91.213,23.0815]
[1645215043161,1.53671231,91.259,91.21,16.4488]
[1645215043367,1.53671231,91.255,91.191,5.48]
[1645215043561,1.53671231,91.249,91.172,5.48]
[1645215043860,1.53671231,91.245,91.173,6.0]
[1645215044066,1.53671231,91.245,91.19,16.4526]
[1645215044264,56.18147243,91.244,91.19,16.4526]
[1645215044462,1.53671231,91.243,91.19,16.4526]
[1645215044861,1.53671231,91.242,91.19,16.4526]
[1645215045061,56.18147243,91.244,91.19,16.4526]
[1645215045261,1.53671231,91.244,91.19,16.4526]
[1645215045472,1.53671231,91.246,91.187,2.6293831]
[1645215045663,1.53671231,91.258,91.191,112.8293831]
[1645215045965,1.53671231,91.275,91.193,110.2]
[1645215046167,1.53671231,91.276,91.194,146.186]
[1645215046364,40.49889107,91.275,91.195,0.25]
[1645215046565,40.49889107,91.275,91.196,5.48]
[1645215046865,0.25,91.274,91.201,39.02539272]
[1645215047065,0.25,91.274,91.202,5.73]
[1645215047470,1.53671231,91.278,91.204,110.2]
[1645215047664,1.53671231,91.281,91.205,11.729]
[1645215047864,1.53671231,91.281,91.205,37.6600831]
[1645215048065,1.53671231,91.281,91.206,21.84703418]
[1645215048265,1.53671231,91.284,91.207,11.729]
[1645215048467,46.61985668,91.283,91.207,33.57603418]
[1645215048665,46.61985668,91.283,91.207,30.94665108]
[1645215048866,46.61985668,91.283,91.24,16.4434]
[1645215050365,0.25,91.282,91.24,16.4434]
[1645215050767,40.86985668,91.283,91.23,16.4455]
[1645215051071,40.86985668,91.283,91.2,54.8199]
[1645215051072,1.53671231,91.278,91.209,5.479]
[1645215051267,1.53671231,91.278,91.207,5.479]
[1645215051470,1.53671231,91.276,91.207,5.479]
[1645215051671,1.53671231,91.275,91.207,5.479]
[1645215051872,1.53671231,91.275,91.207,52.1689679]
[1645215052168,1.53671231,91.275,91.208,0.25]
[1645215052369,1.53671231,91.275,91.209,5.479]
[1645215052567,1.53671231,91.276,91.21,0.25]
[1645215053169,1.53671231,91.275,91.211,5.479]
[1645215053388,1.53671231,91.274,91.22,16.4472]
[1645215054191,1.53671231,91.274,91.211,5.479]
[1645215054391,110.2,91.269,91.201,5.479]
[1645215054594,136.41321231,91.269,91.201,5.479]
[1645215054791,26.21321231,91.269,91.201,5.479]
[1645215054992,1.53671231,91.268,91.201,5.479]
[1645215055191,40.3442255,91.267,91.201,5.479]
[1645215055791,40.3442255,91.267,91.21,63.3924223]
[1645215055993,40.3442255,91.267,91.211,5.73]
[1645215058397,40.3442255,91.267,91.24,16.4431]
[1645215059899,1.53671231,91.283,91.24,16.4431]
[1645215060100,1.53671231,91.288,91.24,16.4431]
[1645215060603,1.53671231,91.286,91.24,16.4431]
[1645215060800,41.58478722,91.285,91.24,16.4431]
[1645215061004,1.53671231,91.282,91.212,5.478]
[1645215061205,1.53671231,91.264,91.175,29.1904]
[1645215061408,1.53671231,91.254,91.175,5.479]
[1645215061603,110.2,91.252,91.151,5.481]
[1645215061902,51.12762185,91.253,91.153,110.2]
[1645215062201,1.53671231,91.253,91.171,110.2]
[1645215062401,1.53671231,91.271,91.181,110.2]
[1645215062601,1.53671231,91.276,91.183,110.2]
[1645215062803,1.53671231,91.284,91.185,110.2]
[1645215063004,1.53671231,91.282,91.19,15.89]
[1645215063206,1.53671231,91.277,91.191,11.73]
[1645215063502,1.53671231,91.277,91.22,16.447]
[1645215064304,1.53671231,91.276,91.221,0.25]
[1645215064605,23.2202,91.281,91.23,16.4452]
[1645215064803,22.8202,91.281,91.23,16.4452]
[1645215065505,22.8202,91.281,91.24,16.443]
[1645215066413,110.2,91.28,91.205,5.478]
[1645215066605,1.53671231,91.277,91.201,29.0608]
[1645215066804,1.53671231,91.272,91.201,23.5818]
[1645215067004,1.53671231,91.268,91.201,23.5818]
[1645215067305,56.87655671,91.267,91.19,5.48]
[1645215067504,23.7341,91.266,91.19,5.48]
[1645215067904,23.7341,91.266,91.191,0.25]
[1645215068106,56.87655671,91.267,91.21,16.4491]
[1645215068307,55.3398444,91.267,91.21,16.4491]
[1645215068507,56.87655671,91.267,91.21,16.4491]
[1645215068807,55.3398444,91.267,91.21,16.4491]
[1645215069407,1.53671231,91.265,91.21,16.4491]
[1645215069807,1.53671231,91.264,91.21,16.4491]
[1645215070008,1.53671231,91.262,91.21,16.4491]
[1645215070207,1.53671231,91.261,91.21,16.4491]
[1645215070812,1.53671231,91.261,91.191,24.4135]
[1645215071011,1.53671231,91.259,91.2,16.4507]
[1645215071527,111.73671231,91.259,91.2,16.4507]
[1645215071713,1.53671231,91.258,91.2,16.4507]
[1645215071915,1.53671231,91.259,91.2,16.4507]
[1645215073117,1.53671231,91.258,91.2,16.4507]
[1645215074321,1.53671231,91.257,91.2,16.4507]
[1645215075124,1.53671231,91.258,91.2,16.4507]
[1645215075321,1.53671231,91.255,91.2,16.4507]
[1645215076626,1.53671231,91.256,91.2,16.4507]
[1645215078928,23.1702,91.259,91.2,16.4507]
[1645215078929,1.53671231,91.257,91.2,16.4507]
[1645215079132,23.1702,91.259,91.211,51.07210329]
[1645215079758,23.1702,91.259,91.197,5.48]
[1645215079950,1.53671231,91.258,91.191,24.4135]
[1645215080351,1.53671231,91.256,91.191,24.4135]
[1645215080750,1.53671231,91.256,91.192,46.50613389]
[1645215081252,1.53671231,91.255,91.192,46.50613389]
[1645215081450,1.53671231,91.255,91.2,16.4508]
[1645215082755,1.53671231,91.256,91.2,16.4508]
[1645215082953,24.70691231,91.259,91.2,16.4508]
[1645215083155,23.1702,91.259,91.21,16.4489]
[1645215083563,23.1702,91.259,91.209,42.22565929]
[1645215083952,23.1702,91.259,91.21,5.73]
[1645215084754,23.1702,91.259,91.21,5.48]
[1645215084954,23.1702,91.259,91.22,16.4474]
[1645215085956,23.1702,91.259,91.203,5.48]
[1645215086157,23.1702,91.259,91.21,16.4491]
[1645215087659,23.1702,91.259,91.203,5.48]
[1645215087860,24.70691231,91.259,91.202,23.588]
[1645215088060,1.53671231,91.258,91.202,23.588]
[1645215088273,111.73671231,91.258,91.202,23.588]
[1645215088561,1.53671231,91.257,91.202,23.588]
[1645215088763,1.53671231,91.256,91.202,23.588]
[1645215089461,1.53671231,91.255,91.202,23.588]
[1645215090564,1.53671231,91.255,91.2,16.4507]
[1645215090764,1.53671231,91.248,91.164,22.8879]
[1645215091065,1.53671231,91.238,91.164,22.8879]
[1645215091264,1.53671231,91.237,91.164,22.8879]
[1645215091463,1.53671231,91.238,91.164,22.8879]
[1645215091663,41.64870133,91.237,91.165,42.21155782]
[1645215091867,41.64870133,91.237,91.18,16.4545]
[1645215092063,1.53671231,91.248,91.181,5.731]
[1645215092264,1.53671231,91.252,91.181,8.1103831]
[1645215092562,1.53671231,91.253,91.182,2.6293831]
[1645215092764,1.53671231,91.253,91.183,5.481]
[1645215092964,48.43977628,91.252,91.2,16.4497]
[1645215094666,49.97648859,91.252,91.2,16.4497]
[1645215094864,48.43977628,91.252,91.2,16.4497]
[1645215095465,49.97648859,91.252,91.2,16.4497]
[1645215096066,48.43977628,91.252,91.2,16.4497]
[1645215096468,49.97648859,91.252,91.19,16.4527]
[1645215097069,1.53671231,91.249,91.19,16.4527]
[1645215097269,1.53671231,91.249,91.191,52.7593067]
[1645215097470,48.43977628,91.252,91.191,52.7593067]
[1645215098971,48.43977628,91.252,91.186,5.48]
[1645215099373,48.43977628,91.252,91.2,16.4509]
[1645215099574,1.53671231,91.251,91.2,16.4509]
[1645215099972,1.53671231,91.249,91.2,16.4509]
[1645215100372,1.53671231,91.246,91.2,16.4509]
[1645215101374,1.53671231,91.247,91.2,16.4509]
[1645215101772,1.53671231,91.248,91.2,16.4509]
[1645215103572,1.53671231,91.25,91.2,16.4509]
[1645215103773,1.53671231,91.25,91.201,45.85721388]
[1645215103973,48.43977628,91.252,91.21,16.4492]
[1645215105175,48.43977628,91.252,91.22,16.4467]
[1645215107081,48.43977628,91.252,91.21,16.449]
[1645215109182,48.43977628,91.252,91.22,16.4472]
[1645215111187,1.53671231,91.268,91.23,16.4454]
[1645215111388,1.53671231,91.277,91.213,115.68]
[1645215111591,1.53671231,91.277,91.22,15.89]
[1645215111791,1.53671231,91.285,91.221,5.729]
[1645215111992,1.53671231,91.289,91.221,5.729]
[1645215112194,53.84690376,91.288,91.221,5.729]
[1645215112390,53.84690376,91.288,91.24,16.4437]
[1645215112992,1.53671231,91.284,91.24,16.4437]
[1645215113413,1.53671231,91.283,91.24,16.4437]
[1645215113608,1.53671231,91.285,91.24,16.4437]
[1645215114011,1.53671231,91.284,91.24,16.4437]
[1645215114210,1.53671231,91.285,91.24,16.4437]
[1645215114409,1.53671231,91.285,91.23,16.4454]
[1645215115110,1.53671231,91.284,91.23,16.4454]
[1645215115910,1.53671231,91.277,91.214,24.4926]
[1645215116111,1.53671231,91.272,91.214,24.4926]
[1645215116310,55.23011456,91.271,91.214,24.4926]
[1645215116713,22.9056,91.27,91.214,24.4926]
[1645215117313,22.9056,91.27,91.22,16.4474]
[1645215119014,22.9056,91.27,91.23,16.4453]
[1645215119212,55.23011456,91.271,91.214,24.4926]
[1645215119213,55.23011456,91.271,91.231,43.28210476]
[1645215119415,1.53671231,91.287,91.231,43.28210476]
[1645215119616,1.53671231,91.292,91.232,29.9691]
[1645215119814,1.53671231,91.293,91.232,24.4911]
[1645215120016,1.53671231,91.292,91.232,24.4911]
[1645215120314,1.53671231,91.296,91.24,16.4425]
[1645215120516,1.66311071,91.296,91.241,5.728]
[1645215120918,41.70247505,91.295,91.242,54.45201057]
[1645215121115,41.70247505,91.295,91.243,5.478]
[1645215121316,41.70247505,91.295,91.232,24.4911]
[1645215121815,41.70247505,91.295,91.233,6.0]
[1645215122017,41.70247505,91.295,91.234,40.81488672]
[1645215122215,41.70247505,91.295,91.235,121.678]
[1645215122414,41.70247505,91.295,91.236,0.25]
[1645215122415,41.82887345,91.295,91.236,0.25]
[1645215122621,41.82887345,91.295,91.24,15.89]
[1645215122817,41.82887345,91.295,91.241,11.478]
[1645215123018,41.82887345,91.295,91.26,16.4399]
[1645215123420,41.82887345,91.295,91.233,5.478]
[1645215123624,41.82887345,91.295,91.23,54.8014]
[1645215124220,24.2012,91.294,91.23,54.8014]
[1645215124422,24.2012,91.294,91.211,5.478]
[1645215124625,5.479,91.293,91.212,24.1158]
[1645215124822,1.53671231,91.291,91.212,24.1158]
[1645215125022,1.53671231,91.291,91.213,5.479]
[1645215125325,1.53671231,91.29,91.214,47.02396868]
[1645215125522,1.66311071,91.29,91.215,5.479]
[1645215125723,1.53671231,91.288,91.214,47.02396868]
[1645215125926,5.479,91.287,91.214,47.02396868]
[1645215126124,1.53671231,91.288,91.214,47.02396868]
[1645215126325,1.66311071,91.29,91.23,16.4453]
[1645215126525,0.1263984,91.29,91.23,16.4453]
[1645215127931,1.53671231,91.286,91.23,16.4453]
[1645215128127,1.53671231,91.286,91.22,16.4469]
[1645215128625,1.53671231,91.283,91.212,24.1158]
[1645215128828,110.2,91.281,91.212,24.1158]
[1645215129026,110.2,91.279,91.206,5.479]
[1645215129226,110.2,91.279,91.21,16.449]
[1645215129633,111.86311071,91.279,91.21,16.449]
[1645215130229,111.73671231,91.277,91.21,16.449]
[1645215130430,110.2,91.269,91.2,16.4508]
[1645215130630,115.8063984,91.269,91.2,16.4508]
[1645215130828,1.53671231,91.268,91.2,16.4508]
[1645215131028,39.25073694,91.265,91.2,16.4508]
[1645215131228,133.4877,91.264,91.2,16.4508]
[1645215131428,135.02441231,91.264,91.2,16.4508]
[1645215131628,135.15081071,91.264,91.2,16.4508]
[1645215132029,132.15081071,91.264,91.2,16.4508]
[1645215132229,108.73671231,91.259,91.191,24.6772]
[1645215132729,2.6293831,91.258,91.191,24.6772]
[1645215132933,108.86311071,91.259,91.191,24.6772]
[1645215133529,110.41107117,91.259,91.191,24.6772]
[1645215133931,108.86311071,91.259,91.191,24.6772]
[1645215135433,0.1263984,91.259,91.2,16.4509]
[1645215135631,110.3263984,91.259,91.2,16.4509]
[1645215135830,0.1263984,91.259,91.2,16.4509]
[1645215139244,110.3263984,91.259,91.19,16.4525]
[1645215142940,110.2,91.259,91.19,16.4525]
[1645215143142,109.8263984,91.259,91.19,16.4525]
[1645215144541,16.4517,91.26,91.19,16.4525]
[1645215144742,1.54796046,91.263,91.183,115.68]
[1645215145042,39.25073694,91.265,91.192,53.20700005]
[1645215145241,39.25073694,91.265,91.193,5.48]
[1645215145445,39.25073694,91.265,91.193,29.55]
[1645215145647,39.25073694,91.265,91.193,24.07]
[1645215145847,39.25073694,91.265,91.194,5.48]
[1645215146046,24.6831,91.264,91.194,5.48]
[1645215146346,24.6831,91.264,91.22,16.4459]
[1645215147464,24.6831,91.264,91.2,16.4494]
[1645215151370,16.4521,91.26,91.2,16.4494]
[1645215151575,110.2,91.259,91.193,24.07]
[1645215151870,112.8293831,91.259,91.193,24.07]
[1645215152768,118.3093831,91.259,91.193,24.07]
[1645215153169,119.85734356,91.259,91.193,24.07]
[1645215153571,1.54796046,91.258,91.193,24.07]
[1645215154468,1.54796046,91.256,91.193,24.07]
[1645215156570,1.54796046,91.253,91.18,16.4545]
[1645215156771,1.54796046,91.252,91.18,16.4545]
[1645215156973,1.54796046,91.253,91.18,16.4545]
[1645215157372,110.2,91.248,91.18,16.4545]
[1645215157572,1.54796046,91.247,91.18,16.4545]
[1645215157972,23.472,91.246,91.18,16.4545]
[1645215158173,25.01996046,91.246,91.18,16.4545]
[1645215159377,1.54796046,91.245,91.18,16.4545]
[1645215160375,25.01996046,91.246,91.18,16.4545]
[1645215160876,25.01996046,91.246,91.173,5.481]
[1645215161076,1.54796046,91.245,91.19,16.4523]
[1645215161282,23.472,91.246,91.191,44.72657924]
[1645215161474,23.472,91.246,91.192,5.481]
[1645215161874,23.472,91.246,91.175,5.481]
[1645215162077,23.472,91.246,91.176,28.9961]
[1645215162274,23.472,91.246,91.177,5.481]
[1645215162474,23.472,91.246,91.2,16.4508]
[1645215162675,41.43852015,91.249,91.179,5.481]
[1645215162876,41.43852015,91.249,91.18,6.25]
[1645215163074,41.43852015,91.249,91.181,5.481]
[1645215163277,41.43852015,91.249,91.182,6.25]
[1645215163581,41.43852015,91.249,91.183,5.481]
[1645215163780,41.43852015,91.249,91.184,47.66736299]
[1645215163975,41.43852015,91.249,91.185,5.481]
[1645215164176,41.43852015,91.249,91.21,16.4477]
[1645215164575,41.43852015,91.249,91.211,5.73]
[1645215164777,41.43852015,91.249,91.211,5.48]
[1645215164980,41.43852015,91.249,91.192,5.48]
[1645215165178,41.43852015,91.249,91.21,16.449]
[1645215166877,41.43852015,91.249,91.2,16.4509]
[1645215167082,41.43852015,91.249,91.192,5.48]
[1645215167283,112.8293831,91.248,91.171,5.481]
[1645215167478,110.2,91.246,91.171,22.7512]
[1645215167680,110.2,91.244,91.171,22.7512]
[1645215168080,110.2,91.242,91.171,22.7512]
[1645215168282,1.54796046,91.238,91.171,22.7512]
[1645215168479,7.02996046,91.237,91.171,22.7512]
[1645215169278,1.54796046,91.234,91.171,22.7512]
[1645215169478,149.38368763,91.235,91.171,22.7512]
[1645215170478,16.4576,91.23,91.171,22.7512]
[1645215171381,39.18368763,91.235,91.171,22.7512]
[1645215171583,39.18368763,91.235,91.172,5.732]
[1645215171781,39.18368763,91.235,91.172,24.44505001]
[1645215172581,39.18368763,91.235,91.19,16.4513]
[1645215173582,39.18368763,91.235,91.174,5.481]
[1645215173782,39.18368763,91.235,91.18,16.4544]
[1645215175684,39.18368763,91.235,91.19,16.4527]
[1645215175984,39.18368763,91.235,91.191,5.731]
[1645215176384,39.18368763,91.235,91.191,5.481]
[1645215176584,39.18368763,91.235,91.19,16.4527]
[1645215178687,39.18368763,91.235,91.191,48.84416259]
[1645215178890,39.18368763,91.235,91.2,16.4508]
[1645215179789,39.18368763,91.235,91.21,16.449]
[1645215183994,23.987,91.26,91.21,16.449]
[1645215184194,23.987,91.26,91.22,16.447]
[1645215184595,1.54796046,91.276,91.22,16.447]
[1645215184894,1.54796046,91.276,91.221,5.729]
[1645215185095,40.76966597,91.275,91.221,5.729]
[1645215186694,40.76966597,91.275,91.221,5.479]
[1645215186898,40.76966597,91.275,91.22,16.447]
[1645215187097,40.76966597,91.275,91.221,5.479]
[1645215187898,40.76966597,91.275,91.22,16.447]
[1645215189019,22.6552,91.274,91.22,16.447]
[1645215191123,22.6552,91.274,91.21,16.449]
[1645215192923,110.2,91.273,91.206,24.1889]
[1645215193125,1.54796046,91.271,91.206,24.1889]
[1645215193324,1.54796046,91.268,91.206,24.1889]
[1645215193524,110.2,91.266,91.206,24.1889]
[1645215193724,110.2,91.264,91.206,24.1889]
[1645215194125,2.6293831,91.263,91.222,0.51191881]
[1645215194526,23.8781,91.262,91.222,0.51191881]
[1645215194724,48.99428082,91.261,91.222,0.51191881]
[1645215195327,16.453,91.26,91.222,0.51191881]
[1645215198931,16.453,91.26,91.206,24.1889]
[1645215203734,110.2,91.259,91.192,23.7552]
[1645215203936,110.2,91.259,91.18,16.4543]
[1645215204140,1.54796046,91.258,91.181,11.731]
[1645215204337,1.54796046,91.257,91.181,11.731]
[1645215205042,1.54796046,91.258,91.181,11.731]
[1645215205337,1.54796046,91.257,91.181,11.731]
[1645215207342,1.54796046,91.257,91.181,5.481]
[1645215207549,1.54796046,91.243,91.16,16.4567]
[1645215207746,1.54796046,91.236,91.16,16.4567]
[1645215207947,110.2,91.234,91.16,16.4567]
[1645215208247,110.2,91.232,91.16,16.4567]
[1645215208447,110.2,91.23,91.161,51.79037127]
[1645215209248,49.30596434,91.231,91.161,51.79037127]
[1645215209249,23.803,91.229,91.161,51.79037127]
[1645215209547,23.803,91.229,91.17,16.4562]
[1645215209846,49.30596434,91.231,91.171,5.482]
[1645215210050,23.803,91.23,91.162,5.482]
[1645215210648,23.803,91.23,91.163,0.25]
[1645215210847,23.803,91.23,91.164,5.482]
[1645215211047,23.803,91.23,91.165,0.25]
[1645215211249,23.803,91.23,91.166,5.482]
[1645215211449,23.803,91.23,91.18,16.4545]
[1645215211747,23.803,91.23,91.177,50.77113698]
[1645215211949,23.803,91.23,91.178,5.732]
[1645215212750,23.803,91.23,91.178,5.482]
[1645215214156,110.2,91.229,91.178,5.482]
[1645215217480,23.803,91.23,91.178,50.12805135]
[1645215217979,23.803,91.23,91.178,44.64605135]
[1645215218681,23.803,91.23,91.18,16.454]
[1645215219781,23.803,91.23,91.19,16.4527]
[1645215219980,49.30596434,91.231,91.191,5.481]
[1645215220181,49.30596434,91.231,91.171,5.481]
[1645215220383,23.7167,91.23,91.168,5.482]
[1645215220581,23.7167,91.23,91.169,0.25]
[1645215220782,23.7167,91.23,91.17,5.482]
[1645215220981,23.7167,91.23,91.171,0.25]
[1645215221180,23.7167,91.23,91.172,5.482]
[1645215221384,110.2,91.229,91.17,16.4564]
[1645215221981,23.7167,91.23,91.17,16.4564]
[1645215222382,23.7167,91.23,91.18,16.4541]
[1645215223583,49.30596434,91.231,91.19,16.4528]
[1645215224183,49.30596434,91.231,91.172,5.481]
[1645215224983,22.5983,91.23,91.172,5.481]
[1645215225383,22.5983,91.23,91.18,16.4542]
[1645215231189,22.5983,91.23,91.181,44.74616087]
[1645215235192,22.5983,91.23,91.182,6.0]
[1645215235410,22.5983,91.23,91.181,44.74616087]
[1645215236195,22.5983,91.23,91.182,6.0]
[1645215236393,22.5983,91.23,91.19,16.4527]
[1645215236594,1.54796046,91.261,91.191,5.731]
[1645215236794,1.54796046,91.261,91.192,24.1229]
[1645215236994,1.54796046,91.268,91.193,5.73]
[1645215237394,1.54796046,91.268,91.193,5.48]
[1645215237693,1.54796046,91.263,91.21,16.4475]
[1645215237895,1.54796046,91.265,91.197,40.2341073]
[1645215238894,1.54796046,91.266,91.197,40.2341073]
[1645215239096,1.54796046,91.265,91.197,40.2341073]
[1645215239296,5.48,91.264,91.2,16.4506]
[1645215239504,1.54796046,91.251,91.166,24.6082]
[1645215239701,1.54796046,91.238,91.166,24.6082]
[1645215239901,15.89,91.23,91.166,24.6082]
[1645215240100,139.7397,91.229,91.166,24.6082]
[1645215240304,110.2,91.227,91.166,24.6082]
[1645215240501,115.682,91.227,91.166,24.6082]